fUST/lending_fUST_20260203
["ID","MTS","AMOUNT","RATE_DAILY","PERIOD"]
[404407557,1770113441840,-214.263563,0.00054795,120]
[404407559,1770113441849,-500.0,0.00054795,120]
[404407561,1770113441858,-500.0,0.00054795,120]
[404407563,1770113441867,-500.0,0.00054795,120]
[404407565,1770113441876,-500.44827673,0.00054795,120]
[404407567,1770113441885,-150.41598327,0.00054795,120]
[404407569,1770113441894,-150.0,0.00054795,120]
[404407571,1770113441903,-150.0,0.00054795,120]
[404407573,1770113441912,-150.0,0.00054795,120]
[404407575,1770113441924,-150.0,0.00054795,120]
[404407578,1770113441937,-150.47665091,0.00054795,120]
[404407580,1770113441950,-150.0,0.00054795,120]
[404407582,1770113441963,-169.29764278,0.00054795,120]
[404407585,1770113441973,-150.72353538,0.00054795,120]
[404407587,1770113441984,-150.0,0.00054795,120]
[404407589,1770113442000,-150.0,0.00054795,120]
[404407592,1770113442013,-203.34718384,0.00054795,120]
[404407594,1770113442025,-150.0,0.00054795,120]
[404407596,1770113442037,-150.0,0.00054795,120]
[404407598,1770113442048,-150.85571884,0.00054795,120]
[404407601,1770113442060,-150.0,0.00054795,120]
[404407603,1770113442072,-150.0,0.00054795,120]
[404407605,1770113442085,-150.0,0.00054795,120]
[404407607,1770113442097,-150.0,0.00054795,120]
[404407609,1770113442109,-221.16340839,0.00054795,120]
[404407611,1770113442120,-150.0,0.00054795,120]
[404407613,1770113442133,-150.2916792,0.00054795,120]
[404407616,1770113442144,-150.0,0.00054795,120]
[404407618,1770113442156,-213.82933171,0.00054795,120]
[404407620,1770113442168,-150.0,0.00054795,120]
[404407622,1770113442180,-200.77005998,0.00054795,120]
[404407625,1770113442192,-500.0,0.00054795,120]
[404407627,1770113442203,-500.0,0.00054795,120]
[404407629,1770113442213,-218.98048368,0.00054795,120]
[404407631,1770113442223,-500.0,0.00054795,120]
[404407633,1770113442234,-500.0,0.00054795,120]
[404407635,1770113442244,-500.0,0.00054795,120]
[404407638,1770113442257,-500.0,0.00054795,120]
[404407640,1770113442268,-500.0,0.00054795,120]
[404407642,1770113442280,-500.0,0.00054795,120]
[404407645,1770113442291,-613.64178547,0.00054795,120]
[404407647,1770113442303,-500.0,0.00054795,120]
[404407649,1770113442314,-500.0,0.00054795,120]
[404407652,1770113442326,-155.12344976,0.00054795,120]
[404407654,1770113442339,-500.0,0.00054795,120]
[404407656,1770113442351,-500.0,0.00054795,120]
[404407658,1770113442360,-500.0,0.00054795,120]
[404407660,1770113442370,-500.0,0.00054795,120]
[404407662,1770113442380,-500.0,0.00054795,120]
[404407665,1770113442391,-500.0,0.00054795,86]
[404407667,1770113442402,-500.0,0.00054795,120]
[404407669,1770113442416,-500.0,0.00054795,86]
[404407672,1770113442428,-500.0,0.00054795,120]
[404407674,1770113442437,-500.0,0.00054795,86]
[404407676,1770113442448,-400.0,0.00054795,120]
[404407678,1770113442459,-500.0,0.00054795,86]
[404407680,1770113442470,-153.90514756,0.00054795,86]
[404407682,1770113442483,-204.96513259,0.00054795,120]
[404407684,1770113442493,-500.0,0.00054795,120]
[404407686,1770113442502,-500.0,0.00054795,120]
[404407688,1770113442512,-265.30464225,0.00054795,120]
[404407689,1770113442524,-500.0,0.00054795,120]
[404407690,1770113442535,-500.0,0.00054795,120]
[404407691,1770113442546,-155.61422014,0.00054795,120]
[404407692,1770113442557,-500.0,0.00054795,120]
[404407693,1770113442567,-500.0,0.00054795,120]
[404407694,1770113442578,-500.0,0.00054795,120]
[404407695,1770113442588,-500.0,0.00054795,120]
[404407696,1770113442600,-484.42938818,0.00054795,120]
[404407697,1770113442610,-500.0,0.00054795,120]
[404407698,1770113442622,-500.0,0.00054795,120]
[404407699,1770113442632,-247.87150617,0.00054795,120]
[404407700,1770113442643,-500.0,0.00054795,120]
[404407701,1770113442653,-500.0,0.00054795,120]
[404407702,1770113442664,-500.0,0.00054795,120]
[404407703,1770113442675,-500.0,0.00054795,120]
[404407704,1770113442685,-500.0,0.00054795,120]
[404407705,1770113442696,-500.0,0.00054795,120]
[404407706,1770113442707,-500.0,0.00054795,120]
[404407707,1770113442718,-500.0,0.00054795,120]
[404407709,1770113442728,-500.0,0.00054795,120]
[404407711,1770113442739,-500.0,0.00054795,120]
[404407713,1770113442750,-500.0,0.00054795,120]
[404407717,1770113442760,-372.3767946,0.00054795,120]
[404407720,1770113442773,-500.0,0.00054795,120]
[404407723,1770113442784,-503.82355484,0.00054795,120]
[404407726,1770113442795,-150.0,0.00054795,120]
[404407730,1770113442806,-150.0,0.00054795,120]
[404407733,1770113442817,-150.0,0.00054795,120]
[404407736,1770113442831,-150.0,0.00054795,120]
[404407748,1770113442928,-150.0,0.00054795,120]
[404407750,1770113442940,-235.54889542,0.00054795,120]
[404407752,1770113442950,-500.0,0.00054795,120]
[404407754,1770113442959,-204.78312062,0.00054795,120]
[404407756,1770113442968,-556.06270442,0.00054795,120]
[404407758,1770113442976,-150.0,0.00054795,2]
[404407760,1770113442985,-500.0,0.00054795,120]
[404407762,1770113442994,-500.0,0.00054795,120]
[404407764,1770113443003,-598.8969387,0.00054795,120]
[404407766,1770113443013,-500.0,0.00054795,120]
[404407768,1770113443022,-543.255282,0.00054795,120]
[404407770,1770113443031,-10682.24958631,0.000549,120]
[404407772,1770113443041,-1002.37,0.00055,120]
[404407774,1770113443050,-740.91124423,0.00055,7]
[404407776,1770113443059,-152.0,0.000554,120]
[404407778,1770113443069,-1000.0,0.00057362,120]
[404407780,1770113443078,-1000.0,0.00057362,120]
[404407782,1770113443087,-1000.0,0.00057362,120]
[404407784,1770113443097,-1205.144541,0.0005757,120]
[404407786,1770113443106,-4470.43992116,0.000589,120]
[404407788,1770113443116,-162.9567276,0.00059,120]
[404407790,1770113443129,-436.57660389,0.00059737,30]
[404407792,1770113443138,-200.0,0.0006,120]
[404407794,1770113443147,-20000.0,0.0006,120]
[404407796,1770113443156,-200.0,0.0006,120]
[404407798,1770113443165,-20000.0,0.0006,120]
[404407800,1770113443174,-20000.0,0.000601,120]
[404407802,1770113443183,-20000.0,0.000602,120]
[404407804,1770113443193,-500.0,0.00060273,120]
[404407806,1770113443202,-5607.07,0.00060273,120]
[404407808,1770113443211,-500.0,0.00060273,120]
[404407810,1770113443220,-521.38455864,0.00060273,120]
[404407812,1770113443230,-1685.8,0.00060273,30]
[404407814,1770113443239,-500.0,0.00060273,120]
[404407816,1770113443249,-156.92358252,0.00060273,120]
[404407818,1770113443258,-500.0,0.00060273,120]
[404407820,1770113443267,-500.0,0.00060273,120]
[404407822,1770113443276,-499.741482,0.00060273,120]
[404407824,1770113443285,-500.0,0.00060273,120]
[404407826,1770113443294,-500.0,0.00060273,120]
[404407828,1770113443303,-500.0,0.00060273,120]
[404407830,1770113443312,-500.0,0.00060273,120]
[404407832,1770113443321,-664.41,0.00060273,120]
[404407834,1770113443330,-500.0,0.00060273,120]
[404407836,1770113443340,-780.55,0.00060273,120]
[404407838,1770113443349,-500.0,0.00060273,120]
[404407840,1770113443358,-619.0444373,0.00060273,120]
[404407842,1770113443367,-500.0,0.00060273,120]
[404407844,1770113443376,-691.1,0.00060273,120]
[404407846,1770113443384,-500.0,0.00060273,120]
[404407848,1770113443393,-500.0,0.00060273,120]
[404407850,1770113443402,-500.0,0.00060273,120]
[404407852,1770113443411,-500.0,0.00060273,120]
[404407854,1770113443420,-1479.53,0.00060273,120]
[404407856,1770113443430,-500.0,0.00060273,120]
[404407858,1770113443439,-500.0,0.00060273,120]
[404407860,1770113443448,-637.38,0.00060273,120]
[404407863,1770113443457,-500.0,0.00060273,120]
[404407866,1770113443465,-755.7,0.00060273,120]
[404407869,1770113443475,-726.04,0.00060273,90]
[404407871,1770113443483,-500.0,0.00060273,7]
[404407873,1770113443492,-500.0,0.00060273,120]
[404407875,1770113443501,-6331.59,0.00060273,120]
[404407877,1770113443510,-500.0,0.00060273,120]
[404407880,1770113443519,-500.0,0.00060273,120]
[404407882,1770113443528,-941.94,0.00060273,120]
[404407885,1770113443537,-1309.61,0.00060273,120]
[404407888,1770113443546,-20000.0,0.000603,120]
[404407890,1770113443556,-20000.0,0.000604,120]
[404407892,1770113443565,-152.0,0.000608,120]
[404407894,1770113443573,-1890.304267,0.0006099,120]
[404407896,1770113443582,-7276.8384,0.0006099,120]
[404407898,1770113443591,-406.0,0.00062355,61]
[404407900,1770113443601,-1000.0,0.00063098,120]
[404407902,1770113443610,-1000.0,0.00063098,120]
[404407904,1770113443619,-1000.0,0.00063098,120]
[404407906,1770113443628,-715.0,0.00063098,120]
[404407908,1770113443638,-3000.0,0.000645,120]
[404407910,1770113443647,-162.04770473,0.00065,120]
[404407912,1770113443656,-1000.0,0.00065,120]
[404407914,1770113443665,-200.0,0.00065,120]
[404407916,1770113443675,-500.0,0.00065753,120]
[404407918,1770113443684,-5607.07,0.00065753,120]
[404407920,1770113443693,-500.0,0.00065753,120]
[404407922,1770113443702,-1685.8,0.00065753,30]
[404407924,1770113443711,-500.0,0.00065753,120]
[404407925,1770113443721,-500.0,0.00065753,120]
[404407927,1770113443729,-457.46955725,0.00065753,120]
[404407929,1770113443740,-299.42937157,0.00065753,120]
[404407931,1770113443749,-500.0,0.00065753,120]
[404407933,1770113443758,-500.0,0.00065753,120]
[404407935,1770113443771,-500.0,0.00065753,120]
[404407937,1770113443780,-664.41,0.00065753,120]
[404407939,1770113443789,-500.0,0.00065753,120]
[404407941,1770113443803,-780.55,0.00065753,120]
[404407943,1770113443814,-500.0,0.00065753,120]
[404407945,1770113443823,-500.0,0.00065753,120]
[404407947,1770113443832,-691.1,0.00065753,120]
[404407949,1770113443842,-500.0,0.00065753,120]
[404407951,1770113443853,-500.0,0.00065753,120]
[404407953,1770113443862,-500.0,0.00065753,120]
[404407955,1770113443870,-500.0,0.00065753,120]
[404407957,1770113443879,-1479.53,0.00065753,120]
[404407959,1770113443888,-489.60726262,0.00065753,120]
[404407961,1770113443897,-500.0,0.00065753,120]
[404407963,1770113443906,-637.38,0.00065753,120]
[404407965,1770113443915,-500.0,0.00065753,120]
[404407967,1770113443924,-755.7,0.00065753,120]
[404407969,1770113443933,-726.04,0.00065753,90]
[404407971,1770113443942,-500.0,0.00065753,7]
[404407973,1770113443951,-500.0,0.00065753,120]
[404407975,1770113443960,-6331.59,0.00065753,120]
[404407977,1770113443969,-500.0,0.00065753,120]
[404407979,1770113443979,-500.0,0.00065753,120]
[404407981,1770113443988,-941.94,0.00065753,120]
[404407983,1770113443997,-1309.61,0.00065753,120]
[404407985,1770113444006,-152.0,0.000662,120]
[404407987,1770113444015,-150.0,0.00066301,30]
[404407989,1770113444024,-756.0,0.00066344,31]
[404407991,1770113444033,-150.50864088,0.00066609,2]
[404407993,1770113444043,-400.0,0.00068233,91]
[404407995,1770113444052,-432.45000016,0.00068493,120]
[404407997,1770113444061,-1259.58964499,0.00068493,120]
[404407999,1770113444071,-11275.30380378,0.000687,120]
[404408001,1770113444080,-5000.12254167,0.000692,30]
[404408003,1770113444089,-1000.0,0.00069408,120]
[404408005,1770113444099,-555.0,0.00069408,120]
[404408007,1770113444107,-3094.15236744,0.0007,30]
[404408009,1770113444117,-200.0,0.0007,120]
[404408011,1770113444127,-238.168,0.00070731,120]
[404408013,1770113444137,-500.0,0.00071232,120]
[404408015,1770113444147,-5607.07,0.00071232,120]
[404408017,1770113444156,-500.0,0.00071232,120]
[404408019,1770113444165,-1685.8,0.00071232,30]
[404408021,1770113444174,-500.0,0.00071232,120]
[404408023,1770113444184,-500.0,0.00071232,120]
[404408025,1770113444193,-392.88687604,0.00071232,120]
[404408027,1770113444202,-500.0,0.00071232,120]
[404408029,1770113444211,-519.82747102,0.00071232,120]
[404408031,1770113444220,-664.41,0.00071232,120]
[404408033,1770113444229,-151.38516647,0.00071232,120]
[404408035,1770113444237,-780.55,0.00071232,120]
[404408037,1770113444247,-273.84100057,0.00071232,120]
[404408039,1770113444256,-500.0,0.00071232,120]
[404408041,1770113444264,-691.1,0.00071232,120]
[404408043,1770113444273,-500.0,0.00071232,120]
[404408045,1770113444282,-500.0,0.00071232,120]
[404408047,1770113444291,-500.0,0.00071232,120]
[404408049,1770113444300,-568.09404558,0.00071232,120]
[404408051,1770113444309,-1479.53,0.00071232,120]
[404408053,1770113444318,-500.0,0.00071232,120]
[404408055,1770113444327,-637.38,0.00071232,120]
[404408057,1770113444336,-500.0,0.00071232,120]
[404408059,1770113444346,-755.7,0.00071232,120]
[404408061,1770113444355,-726.04,0.00071232,90]
[404408062,1770113444364,-500.0,0.00071232,7]
[404408065,1770113444373,-500.0,0.00071232,120]
[404408067,1770113444386,-6331.59,0.00071232,120]
[404408069,1770113444395,-209.33596131,0.00071232,120]
[404408071,1770113444404,-500.0,0.00071232,120]
[404408073,1770113444414,-941.94,0.00071232,120]
[404408075,1770113444423,-1309.61,0.00071232,120]
[404408077,1770113444431,-152.0,0.000716,120]
[404408079,1770113444441,-400.0,0.00071734,91]
[404408081,1770113444451,-168.70994441,0.00072771,90]
[404408083,1770113444460,-3094.15236744,0.00072805,30]
[404408085,1770113444469,-150.0,0.00073404,30]
[404408087,1770113444478,-200.0,0.00075,120]
[404408089,1770113444488,-500.0,0.00076712,120]
[404408091,1770113444497,-5607.07,0.00076712,120]
[404408093,1770113444506,-500.0,0.00076712,120]
[404408095,1770113444515,-1685.8,0.00076712,30]
[404408097,1770113444524,-500.0,0.00076712,120]
[404408099,1770113444533,-500.0,0.00076712,120]
[404408101,1770113444542,-500.0,0.00076712,120]
[404408103,1770113444551,-664.41,0.00076712,120]
[404408105,1770113444560,-780.55,0.00076712,120]
[404408107,1770113444568,-500.0,0.00076712,120]
[404408109,1770113444577,-691.1,0.00076712,120]
[404408111,1770113444586,-500.0,0.00076712,120]
[404408112,1770113444596,-500.0,0.00076712,120]
[404408114,1770113444605,-500.0,0.00076712,120]
[404408116,1770113444614,-1479.53,0.00076712,120]
[404408118,1770113444623,-415.20497892,0.00076712,120]
[404408120,1770113444632,-637.38,0.00076712,120]
[404408122,1770113444641,-500.0,0.00076712,120]
[404408124,1770113444650,-755.7,0.00076712,120]
[404408126,1770113444659,-726.04,0.00076712,90]
[404408127,1770113444668,-500.0,0.00076712,120]
[404408128,1770113444678,-6331.59,0.00076712,120]
[404408129,1770113444687,-500.0,0.00076712,120]
[404408130,1770113444696,-941.94,0.00076712,120]
[404408131,1770113444705,-1309.61,0.00076712,120]
[404408132,1770113444715,-1807.716811,0.0007676,120]
[404408133,1770113444724,-18706.20874178,0.00076987,30]
[404408134,1770113444733,-18706.20874178,0.00076987,30]
[404408135,1770113444742,-156.0,0.00077,120]
[404408136,1770113444751,-500.00189659,0.00077535,30]
[404408137,1770113444760,-500.00189659,0.00077535,30]
[404408138,1770113444771,-373.42998661,0.00077535,30]
[404408139,1770113444847,-373.42998661,0.00077535,30]
[404408140,1770113444858,-207.07,0.000776,30]
[404408141,1770113444868,-200.0,0.00077794,120]
[404408142,1770113444877,-3094.15236744,0.00079737,30]
[404408143,1770113444887,-3094.15236744,0.00079737,30]
[404408144,1770113444896,-200.0,0.0008,120]
[404408145,1770113444905,-196.0,0.0008,120]
[404408146,1770113444915,-200.0,0.0008,120]
[404408147,1770113444925,-871.57,0.0008,14]
[404408148,1770113444934,-300.0,0.0008,60]
[404408149,1770113444944,-200.0,0.00080084,120]
[404408150,1770113444954,-150.0,0.00080508,30]
[404408151,1770113444963,-2835.456401,0.0008132,120]
[404408152,1770113444973,-10915.2576,0.0008132,120]
[404408153,1770113444983,-582.362926,0.00082191,120]
[404408154,1770113444992,-5607.07,0.00082191,120]
[404408155,1770113445001,-500.0,0.00082191,120]
[404408156,1770113445010,-1685.8,0.00082191,30]
[404408157,1770113445020,-500.0,0.00082191,120]
[404408158,1770113445030,-500.0,0.00082191,120]
[404408159,1770113445040,-500.0,0.00082191,120]
[404408160,1770113445049,-664.41,0.00082191,120]
[404408161,1770113445061,-780.55,0.00082191,120]
[404408162,1770113445070,-500.0,0.00082191,120]
[404408163,1770113445080,-691.1,0.00082191,120]
[404408164,1770113445089,-500.0,0.00082191,120]
[404408165,1770113445101,-500.0,0.00082191,120]
[404408167,1770113445110,-500.0,0.00082191,120]
[404408169,1770113445119,-1479.53,0.00082191,120]
[404408171,1770113445129,-637.38,0.00082191,120]
[404408173,1770113445139,-755.7,0.00082191,120]
[404408174,1770113445148,-726.04,0.00082191,90]
[404408175,1770113445158,-552.03959365,0.00082191,120]
[404408176,1770113445168,-6331.59,0.00082191,120]
[404408177,1770113445177,-500.0,0.00082191,120]
[404408178,1770113445186,-941.94,0.00082191,120]
[404408179,1770113445195,-1309.61,0.00082191,120]
[404408180,1770113445204,-200.0,0.00082937,120]
[404408181,1770113445213,-34522.84101102,0.000835,120]
[404408182,1770113445222,-150.0,0.00087612,30]
[404408183,1770113445231,-5607.07,0.00087671,120]
[404408184,1770113445239,-500.0,0.00087671,120]
[404408185,1770113445249,-1685.8,0.00087671,30]
[404408186,1770113445258,-500.0,0.00087671,120]
[404408187,1770113445268,-500.0,0.00087671,120]
[404408188,1770113445277,-500.0,0.00087671,120]
[404408189,1770113445287,-664.41,0.00087671,120]
[404408190,1770113445296,-780.55,0.00087671,120]
[404408191,1770113445306,-500.0,0.00087671,120]
[404408192,1770113445317,-691.1,0.00087671,120]
[404408193,1770113445326,-469.23213862,0.00087671,120]
[404408194,1770113445336,-500.0,0.00087671,120]
[404408195,1770113445347,-500.0,0.00087671,120]
[404408196,1770113445357,-1479.53,0.00087671,120]
[404408197,1770113445366,-637.38,0.00087671,120]
[404408198,1770113445376,-755.7,0.00087671,120]
[404408199,1770113445385,-726.04,0.00087671,90]
[404408200,1770113445394,-6331.59,0.00087671,120]
[404408201,1770113445404,-500.0,0.00087671,120]
[404408202,1770113445413,-941.94,0.00087671,120]
[404408203,1770113445423,-1309.61,0.00087671,120]
[404408204,1770113445432,-150.50864088,0.0008775,2]
[404408205,1770113445442,-1000.0,0.0009,120]
[404408206,1770113445451,-6980.09045428,0.0009,120]
[404408207,1770113445461,-238.168,0.00090365,120]
[404408209,1770113445470,-5607.07,0.0009315,120]
[404408211,1770113445479,-500.0,0.0009315,120]
[404408212,1770113445489,-1685.8,0.0009315,30]
[404408214,1770113445499,-500.0,0.0009315,120]
[404408216,1770113445508,-500.0,0.0009315,120]
[404408217,1770113445518,-500.0,0.0009315,120]
[404408218,1770113445527,-664.41,0.0009315,120]
[404408219,1770113445537,-780.55,0.0009315,120]
[404408220,1770113445547,-500.0,0.0009315,120]
[404408221,1770113445556,-691.1,0.0009315,120]
[404408222,1770113445566,-500.0,0.0009315,120]
[404408223,1770113445576,-500.0,0.0009315,120]
[404408224,1770113445586,-1479.53,0.0009315,120]
[404408225,1770113445597,-637.38,0.0009315,120]
[404408226,1770113445606,-755.7,0.0009315,120]
[404408227,1770113445616,-726.04,0.0009315,90]
[404408228,1770113445625,-6331.59,0.0009315,120]
[404408229,1770113445635,-500.0,0.0009315,120]
[404408230,1770113445645,-941.94,0.0009315,120]
[404408231,1770113445654,-1309.61,0.0009315,120]
[404408232,1770113445664,-150.0,0.00094715,30]
[404408233,1770113445673,-6153.48589355,0.0009488,60]
[404408234,1770113445683,-2223.65852134,0.00095,120]
[404408235,1770113445693,-4662.24876314,0.00095518,28]
[404408236,1770113445705,-1000.0,0.00095631,120]
[404408237,1770113445715,-207.07,0.000958,60]
[404408238,1770113445724,-6070.40177361,0.000975,30]
[404408239,1770113445734,-1000.0,0.00098,120]
[404408240,1770113445744,-1000.0,0.00098,120]
[404408241,1770113445755,-871.57,0.00098,30]
[404408242,1770113445767,-150.50864088,0.00098321,2]
[404408243,1770113445777,-5607.07,0.0009863,120]
[404408244,1770113445787,-500.0,0.0009863,120]
[404408245,1770113445797,-1685.8,0.0009863,30]
[404408246,1770113445808,-500.0,0.0009863,120]
[404408247,1770113445818,-500.0,0.0009863,120]
[404408248,1770113445828,-500.0,0.0009863,120]
[404408249,1770113445837,-664.41,0.0009863,120]
[404408250,1770113445849,-780.55,0.0009863,120]
[404408251,1770113445859,-500.0,0.0009863,120]
[404408252,1770113445870,-691.1,0.0009863,120]
[404408253,1770113445880,-500.0,0.0009863,120]
[404408254,1770113445889,-318.04311217,0.0009863,120]
[404408255,1770113445899,-1479.53,0.0009863,120]
[404408256,1770113445908,-637.38,0.0009863,120]
[404408257,1770113445919,-755.7,0.0009863,120]
[404408258,1770113445929,-726.04,0.0009863,90]
[404408259,1770113445939,-6331.59,0.0009863,120]
[404408260,1770113445950,-500.0,0.0009863,120]
[404408261,1770113445961,-941.94,0.0009863,120]
[404408262,1770113445972,-1309.61,0.0009863,120]
[404408263,1770113445982,-871.57,0.000987,30]
[404408264,1770113445992,-266.28,0.00099298,120]
[404408266,1770113446002,-543.42983031,0.001,120]
[404408268,1770113446012,-937.85659383,0.001,120]
[404408270,1770113446022,-200.0,0.001,120]
[404408272,1770113446032,-150.0,0.00101819,30]
[404408273,1770113446041,-5607.07,0.00104109,120]
[404408274,1770113446051,-500.0,0.00104109,120]
[404408275,1770113446061,-1685.8,0.00104109,30]
[404408276,1770113446073,-500.0,0.00104109,120]
[404408277,1770113446083,-500.0,0.00104109,120]
[404408278,1770113446092,-500.0,0.00104109,120]
[404408279,1770113446102,-664.41,0.00104109,120]
[404408280,1770113446111,-780.55,0.00104109,120]
[404408281,1770113446122,-500.0,0.00104109,120]
[404408282,1770113446131,-691.1,0.00104109,120]
[404408283,1770113446141,-500.0,0.00104109,120]
[404408284,1770113446153,-1479.53,0.00104109,120]
[404408286,1770113446164,-637.38,0.00104109,120]
[404408288,1770113446175,-755.7,0.00104109,120]
[404408289,1770113446185,-726.04,0.00104109,90]
[404408290,1770113446195,-6331.59,0.00104109,120]
[404408291,1770113446206,-500.0,0.00104109,120]
[404408293,1770113446216,-941.94,0.00104109,120]
[404408294,1770113446225,-1309.61,0.00104109,120]
[404408296,1770113446235,-948.7816,0.001045,120]
[404408298,1770113446245,-150.50864088,0.00108891,2]
[404408300,1770113446255,-152.35,0.00108923,30]
[404408301,1770113446265,-5607.07,0.00109589,120]
[404408303,1770113446275,-500.0,0.00109589,120]
[404408304,1770113446284,-1685.8,0.00109589,30]
[404408305,1770113446294,-500.0,0.00109589,120]
[404408306,1770113446304,-500.0,0.00109589,120]
[404408307,1770113446313,-500.0,0.00109589,120]
[404408308,1770113446323,-664.41,0.00109589,120]
[404408309,1770113446333,-780.55,0.00109589,120]
[404408310,1770113446343,-500.0,0.00109589,120]
[404408311,1770113446353,-691.1,0.00109589,120]
[404408312,1770113446362,-522.03605614,0.00109589,120]
[404408313,1770113446372,-1479.53,0.00109589,120]
[404408314,1770113446382,-637.38,0.00109589,120]
[404408315,1770113446391,-726.04,0.00109589,90]
[404408316,1770113446401,-755.7,0.00109589,120]
[404408317,1770113446410,-6331.59,0.00109589,120]
[404408318,1770113446420,-500.0,0.00109589,120]
[404408319,1770113446430,-941.94,0.00109589,120]
[404408320,1770113446439,-1309.61,0.00109589,120]
[404408321,1770113446448,-1000.0,0.0011,120]
[404408322,1770113446458,-238.167,0.0011,120]
[404408323,1770113446468,-200.0,0.00111317,120]
[404408324,1770113446477,-5607.07,0.00115068,120]
[404408325,1770113446487,-500.0,0.00115068,120]
[404408326,1770113446496,-1685.8,0.00115068,30]
[404408327,1770113446505,-500.0,0.00115068,120]
[404408328,1770113446515,-500.0,0.00115068,120]
[404408329,1770113446524,-500.0,0.00115068,120]
[404408330,1770113446533,-664.41,0.00115068,120]
[404408331,1770113446542,-780.55,0.00115068,120]
[404408332,1770113446552,-500.0,0.00115068,120]
[404408333,1770113446561,-691.1,0.00115068,120]
[404408334,1770113446570,-1479.53,0.00115068,120]
[404408335,1770113446580,-637.38,0.00115068,120]
[404408336,1770113446589,-726.04,0.00115068,90]
[404408337,1770113446599,-755.7,0.00115068,120]
[404408338,1770113446608,-6331.59,0.00115068,120]
[404408339,1770113446619,-500.0,0.00115068,120]
[404408340,1770113446629,-941.94,0.00115068,120]
[404408341,1770113446638,-1309.61,0.00115068,120]
[404408343,1770113446648,-2711.575217,0.0011514,120]
[404408344,1770113446721,-710.0,0.00115981,31]
[404408345,1770113446731,-174.12,0.00116026,30]
[404408346,1770113446740,-150.50864088,0.00119462,2]
[404408347,1770113446750,-1000.0,0.0012,120]
[404408348,1770113446760,-871.57,0.0012,30]
[404408349,1770113446770,-5607.07,0.00120547,120]
[404408350,1770113446782,-500.0,0.00120547,120]
[404408351,1770113446793,-1685.8,0.00120547,30]
[404408352,1770113446805,-500.0,0.00120547,120]
[404408353,1770113446815,-500.0,0.00120547,120]
[404408354,1770113446825,-500.0,0.00120547,120]
[404408355,1770113446834,-664.41,0.00120547,120]
[404408356,1770113446844,-780.55,0.00120547,120]
[404408357,1770113446856,-500.0,0.00120547,120]
[404408358,1770113446865,-691.1,0.00120547,120]
[404408359,1770113446875,-1479.53,0.00120547,120]
[404408360,1770113446885,-637.38,0.00120547,120]
[404408361,1770113446895,-726.04,0.00120547,90]
[404408362,1770113446904,-755.7,0.00120547,120]
[404408363,1770113446915,-6331.59,0.00120547,120]
[404408364,1770113446924,-500.0,0.00120547,120]
[404408365,1770113446934,-941.94,0.00120547,120]
[404408366,1770113446943,-1309.61,0.00120547,120]
[404408367,1770113446953,-1890.304267,0.0012198,120]
[404408368,1770113446963,-10915.2576,0.0012198,120]